[Event "Titled Tuesday Blitz May 16 Late 2023"]
[White "Xavier_mompel"]
[Black "Powell, Paul"]
[BlackFideId "2005840"]
[WhiteElo "2199"]
[BlackElo "2087"]
[Result "1-0"]
[Round "06"]
[TimeControl "180+2"]
[Date "2023.05.16"]
[WhiteClock "0:00:16"]
[BlackClock "0:00:03"]

1. e4 {[%clk 0:03:00]}  c5 {[%clk 0:02:59]} 2. Nf3 {[%clk 0:03:00]}  d6 {[%clk 0:02:58]} 3. d4 {[%clk 0:03:01]}  cxd4 {[%clk 0:02:58]} 4. Nxd4 {[%clk 0:03:02]}  Nf6 {[%clk 0:02:58]} 5. Nc3 {[%clk 0:03:02]}  g6 {[%clk 0:02:58]} 6. Be3 {[%clk 0:03:00]}  Bg7 {[%clk 0:02:58]} 7. f3 {[%clk 0:02:58]}  O-O {[%clk 0:02:57]} 8. Qd2 {[%clk 0:02:58]}  Nc6 {[%clk 0:02:57]} 9. Bc4 {[%clk 0:02:58]}  Nxd4 {[%clk 0:02:57]} 10. Bxd4 {[%clk 0:02:57]}  Be6 {[%clk 0:02:57]} 11. Bxe6 {[%clk 0:02:55]}  fxe6 {[%clk 0:02:57]} 12. O-O-O {[%clk 0:02:55]}  Qa5 {[%clk 0:02:52]} 13. Kb1 {[%clk 0:02:50]}  Rac8 {[%clk 0:02:47]} 14. g4 {[%clk 0:02:42]}  Rc4 {[%clk 0:02:43]} 15. Ne2 {[%clk 0:01:47]}  Qxd2 {[%clk 0:02:38]} 16. Rxd2 {[%clk 0:01:48]}  Rfc8 {[%clk 0:02:36]} 17. Rhd1 {[%clk 0:01:44]}  e5 {[%clk 0:02:27]} 18. Be3 {[%clk 0:01:39]}  a6 {[%clk 0:02:23]} 19. Nc3 {[%clk 0:01:34]}  Rxc3 {[%clk 0:02:18]} 20. bxc3 {[%clk 0:01:35]}  Rxc3 {[%clk 0:02:16]} 21. Rd3 {[%clk 0:01:35]}  Rc7 {[%clk 0:02:14]} 22. a4 {[%clk 0:01:22]}  Nd7 {[%clk 0:02:08]} 23. Rb3 {[%clk 0:01:21]}  Nf8 {[%clk 0:02:02]} 24. Rdd3 {[%clk 0:01:12]}  Ne6 {[%clk 0:01:58]} 25. Rdc3 {[%clk 0:01:11]}  Rd7 {[%clk 0:01:58]} 26. Rc8+ {[%clk 0:01:10]}  Kf7 {[%clk 0:01:57]} 27. Rb8 {[%clk 0:01:09]}  b5 {[%clk 0:01:57]} 28. axb5 {[%clk 0:01:08]}  axb5 {[%clk 0:01:57]} 29. R3xb5 {[%clk 0:01:08]}  Nd4 {[%clk 0:01:56]} 30. Bxd4 {[%clk 0:01:07]}  exd4 {[%clk 0:01:56]} 31. R5b7 {[%clk 0:01:06]}  Rxb7+ {[%clk 0:01:48]} 32. Rxb7 {[%clk 0:01:07]}  Be5 {[%clk 0:01:48]} 33. h3 {[%clk 0:00:57]}  Ke6 {[%clk 0:01:46]} 34. Kc1 {[%clk 0:00:55]}  Kf7 {[%clk 0:01:43]} 35. Kd2 {[%clk 0:00:51]}  Ke6 {[%clk 0:01:35]} 36. Kd3 {[%clk 0:00:51]}  Bf6 {[%clk 0:00:49]} 37. f4 {[%clk 0:00:48]}  Bg7 {[%clk 0:00:46]} 38. g5 {[%clk 0:00:35]}  Kf7 {[%clk 0:00:44]} 39. h4 {[%clk 0:00:35]}  Ke6 {[%clk 0:00:42]} 40. Rb5 {[%clk 0:00:33]}  Kf7 {[%clk 0:00:41]} 41. f5 {[%clk 0:00:34]}  Be5 {[%clk 0:00:34]} 42. Rb1 {[%clk 0:00:30]}  Kg7 {[%clk 0:00:29]} 43. Rh1 {[%clk 0:00:29]}  h6 {[%clk 0:00:27]} 44. Rg1 {[%clk 0:00:26]}  h5 {[%clk 0:00:24]} 45. Rf1 {[%clk 0:00:20]}  Bg3 {[%clk 0:00:21]} 46. Rh1 {[%clk 0:00:19]}  Be5 {[%clk 0:00:20]} 47. Kc4 {[%clk 0:00:19]}  Kf7 {[%clk 0:00:19]} 48. Kd5 {[%clk 0:00:19]}  Bh8 {[%clk 0:00:15]} 49. Rf1 {[%clk 0:00:17]}  Be5 {[%clk 0:00:14]} 50. fxg6+ {[%clk 0:00:16]}  Kxg6 {[%clk 0:00:14]} 51. Ke6 {[%clk 0:00:16]}  Bg3 {[%clk 0:00:13]} 52. Rh1 {[%clk 0:00:16]}  Be5 {[%clk 0:00:03]} 53. Kxe7 {[%clk 0:00:16]} 1-0


[Site "https://www.chess.com"]

[Event "Titled Tuesday Blitz May 16 Late 2023"]
[White "teresin05"]
[Black "Vargas, Mauricio"]
[BlackFideId "4404572"]
[WhiteElo "2185"]
[BlackElo "1986"]
[Result "1-0"]
[Round "06"]
[TimeControl "180+2"]
[Date "2023.05.16"]
[WhiteClock "0:00:19"]
[BlackClock "0:00:00"]

1. e4 {[%clk 0:03:00]}  d6 {[%clk 0:02:19]} 2. d4 {[%clk 0:02:59]}  g6 {[%clk 0:02:17]} 3. Nc3 {[%clk 0:02:59]}  Bg7 {[%clk 0:02:17]} 4. f4 {[%clk 0:02:59]}  Nf6 {[%clk 0:02:17]} 5. Nf3 {[%clk 0:02:59]}  O-O {[%clk 0:02:07]} 6. Be3 {[%clk 0:02:54]}  b6 {[%clk 0:02:04]} 7. e5 {[%clk 0:02:41]}  Ng4 {[%clk 0:01:59]} 8. Bg1 {[%clk 0:02:40]}  Bb7 {[%clk 0:01:54]} 9. h3 {[%clk 0:02:39]}  Nh6 {[%clk 0:01:50]} 10. Qd3 {[%clk 0:02:37]}  Nf5 {[%clk 0:01:44]} 11. Bf2 {[%clk 0:02:28]}  e6 {[%clk 0:01:17]} 12. O-O-O {[%clk 0:02:22]}  Nc6 {[%clk 0:01:09]} 13. Kb1 {[%clk 0:02:21]}  Nb4 {[%clk 0:01:06]} 14. Qe2 {[%clk 0:01:52]}  a5 {[%clk 0:01:05]} 15. g4 {[%clk 0:01:46]}  Ne7 {[%clk 0:01:00]} 16. Bg2 {[%clk 0:01:44]}  Ned5 {[%clk 0:00:56]} 17. Nxd5 {[%clk 0:01:35]}  Bxd5 {[%clk 0:00:55]} 18. a3 {[%clk 0:01:30]}  Qd7 {[%clk 0:00:39]} 19. h4 {[%clk 0:01:16]}  Qc6 {[%clk 0:00:32]} 20. h5 {[%clk 0:00:56]}  Nxc2 {[%clk 0:00:30]} 21. Qxc2 {[%clk 0:00:48]}  Be4 {[%clk 0:00:29]} 22. Rd3 {[%clk 0:00:48]}  Qb5 {[%clk 0:00:26]} 23. Rhd1 {[%clk 0:00:45]}  c5 {[%clk 0:00:24]} 24. Ne1 {[%clk 0:00:39]}  Bxd3 {[%clk 0:00:21]} 25. Qxd3 {[%clk 0:00:39]}  Qa4 {[%clk 0:00:17]} 26. Bxa8 {[%clk 0:00:35]}  Rxa8 {[%clk 0:00:15]} 27. dxc5 {[%clk 0:00:35]}  bxc5 {[%clk 0:00:13]} 28. Qxd6 {[%clk 0:00:31]}  Rc8 {[%clk 0:00:11]} 29. Qd7 {[%clk 0:00:19]}  Rf8 {[%clk 0:00:09]} 30. Qxa4 {[%clk 0:00:19]}  Rb8 {[%clk 0:00:05]} 31. hxg6 {[%clk 0:00:19]}  hxg6 {[%clk 0:00:03]} 32. Bxc5 {[%clk 0:00:19]}  f6 {[%clk 0:00:02]} 33. exf6 {[%clk 0:00:19]}  Bxf6 {[%clk 0:00:02]} 34. Bd4 {[%clk 0:00:20]}  e5 {[%clk 0:00:00]} 35. Bxe5 {[%clk 0:00:19]} 1-0


[Site "https://www.chess.com"]

[Event "Titled Tuesday Blitz May 16 Late 2023"]
[White "Bortnyk, Olexandr"]
[Black "Makarian, Rudik"]
[WhiteFideId "14120828"]
[BlackFideId "44105681"]
[WhiteElo "2734"]
[BlackElo "2461"]
[Result "1-0"]
[Round "07"]
[TimeControl "180+2"]
[Date "2023.05.16"]
[WhiteClock "0:00:51"]
[BlackClock "0:00:00"]

1. d4 {[%clk 0:03:00]}  Nf6 {[%clk 0:03:00]} 2. Nc3 {[%clk 0:03:01]}  d5 {[%clk 0:03:00]} 3. Bf4 {[%clk 0:03:02]}  c5 {[%clk 0:02:58]} 4. e4 {[%clk 0:03:02]}  Nxe4 {[%clk 0:02:53]} 5. Nxe4 {[%clk 0:03:02]}  dxe4 {[%clk 0:02:54]} 6. dxc5 {[%clk 0:03:03]}  Nd7 {[%clk 0:02:40]} 7. b4 {[%clk 0:03:01]}  e5 {[%clk 0:02:36]} 8. Bd2 {[%clk 0:02:44]}  a5 {[%clk 0:02:32]} 9. a3 {[%clk 0:02:42]}  Be7 {[%clk 0:02:26]} 10. Bc4 {[%clk 0:02:39]}  O-O {[%clk 0:02:21]} 11. Ne2 {[%clk 0:02:39]}  Kh8 {[%clk 0:01:58]} 12. Bc3 {[%clk 0:02:14]}  Qc7 {[%clk 0:01:51]} 13. Ng3 {[%clk 0:02:06]}  axb4 {[%clk 0:01:40]} 14. axb4 {[%clk 0:02:04]}  Rxa1 {[%clk 0:01:41]} 15. Qxa1 {[%clk 0:02:04]}  b6 {[%clk 0:01:41]} 16. Nxe4 {[%clk 0:01:58]}  Bb7 {[%clk 0:01:32]} 17. f3 {[%clk 0:01:37]}  Ra8 {[%clk 0:01:02]} 18. Qd1 {[%clk 0:01:28]}  bxc5 {[%clk 0:00:49]} 19. b5 {[%clk 0:01:28]}  f6 {[%clk 0:00:35]} 20. O-O {[%clk 0:01:22]}  Nb6 {[%clk 0:00:35]} 21. Be6 {[%clk 0:01:12]}  c4 {[%clk 0:00:31]} 22. Kh1 {[%clk 0:01:08]}  Na4 {[%clk 0:00:26]} 23. Bd2 {[%clk 0:01:05]}  Rd8 {[%clk 0:00:22]} 24. Qe1 {[%clk 0:01:05]}  Nc5 {[%clk 0:00:09]} 25. Ba5 {[%clk 0:01:04]}  Qb8 {[%clk 0:00:06]} 26. Bxd8 {[%clk 0:01:03]}  Qxd8 {[%clk 0:00:04]} 27. Nxc5 {[%clk 0:01:03]}  Bxc5 {[%clk 0:00:05]} 28. Bxc4 {[%clk 0:01:03]}  Qd4 {[%clk 0:00:03]} 29. Bd3 {[%clk 0:00:56]}  g6 {[%clk 0:00:02]} 30. Qa1 {[%clk 0:00:54]}  Qd6 {[%clk 0:00:01]} 31. Rd1 {[%clk 0:00:52]}  Kg7 {[%clk 0:00:00]} 32. Be4 {[%clk 0:00:51]} 1-0


[Site "https://www.chess.com"]

[Event "Titled Tuesday Blitz May 16 Late 2023"]
[White "Xiong, Jeffery"]
[Black "Caruana, Fabiano"]
[WhiteFideId "2047640"]
[BlackFideId "2020009"]
[WhiteElo "2726"]
[BlackElo "2837"]
[Result "1/2-1/2"]
[Round "07"]
[TimeControl "180+2"]
[Date "2023.05.16"]
[WhiteClock "0:01:24"]
[BlackClock "0:00:50"]

1. e4 {[%clk 0:03:00]}  e5 {[%clk 0:02:59]} 2. Nf3 {[%clk 0:03:01]}  Nc6 {[%clk 0:02:59]} 3. Nc3 {[%clk 0:03:02]}  Nf6 {[%clk 0:02:59]} 4. d4 {[%clk 0:03:02]}  exd4 {[%clk 0:02:59]} 5. Nxd4 {[%clk 0:03:03]}  Bb4 {[%clk 0:02:59]} 6. Nxc6 {[%clk 0:03:04]}  bxc6 {[%clk 0:03:00]} 7. Bd3 {[%clk 0:03:04]}  d5 {[%clk 0:02:58]} 8. exd5 {[%clk 0:03:05]}  O-O {[%clk 0:02:58]} 9. O-O {[%clk 0:03:06]}  cxd5 {[%clk 0:02:58]} 10. h3 {[%clk 0:03:06]}  c5 {[%clk 0:02:55]} 11. a3 {[%clk 0:03:00]}  Bxc3 {[%clk 0:02:54]} 12. bxc3 {[%clk 0:03:01]}  Be6 {[%clk 0:02:51]} 13. Qf3 {[%clk 0:02:58]}  h6 {[%clk 0:02:43]} 14. Rd1 {[%clk 0:02:58]}  Re8 {[%clk 0:02:41]} 15. Bf4 {[%clk 0:02:58]}  Qe7 {[%clk 0:02:39]} 16. Rab1 {[%clk 0:02:54]}  c4 {[%clk 0:02:30]} 17. Bf1 {[%clk 0:02:54]}  Ne4 {[%clk 0:02:23]} 18. Bxc4 {[%clk 0:02:27]}  Nxf2 {[%clk 0:02:12]} 19. Bxd5 {[%clk 0:01:56]}  Nxd1 {[%clk 0:01:50]} 20. Bxa8 {[%clk 0:01:56]}  Qc5+ {[%clk 0:01:50]} 21. Kh2 {[%clk 0:01:57]}  Nxc3 {[%clk 0:01:49]} 22. Re1 {[%clk 0:01:52]}  Rd8 {[%clk 0:01:38]} 23. Re3 {[%clk 0:01:45]}  Nb5 {[%clk 0:01:28]} 24. Be4 {[%clk 0:01:44]}  Nd4 {[%clk 0:01:24]} 25. Qg3 {[%clk 0:01:42]}  Nf5 {[%clk 0:01:09]} 26. Bxf5 {[%clk 0:01:42]}  Bxf5 {[%clk 0:01:10]} 27. Bxh6 {[%clk 0:01:39]}  Bg6 {[%clk 0:01:10]} 28. Rc3 {[%clk 0:01:36]}  Qf5 {[%clk 0:00:52]} 29. Be3 {[%clk 0:01:33]}  a6 {[%clk 0:00:52]} 30. Qf4 {[%clk 0:01:31]}  Qxf4+ {[%clk 0:00:51]} 31. Bxf4 {[%clk 0:01:32]}  Re8 {[%clk 0:00:51]} 32. Kg3 {[%clk 0:01:27]}  Re2 {[%clk 0:00:49]} 33. Kf3 {[%clk 0:01:27]}  Rxc2 {[%clk 0:00:49]} 34. Rxc2 {[%clk 0:01:24]}  Bxc2 {[%clk 0:00:50]} 1/2-1/2


[Site "https://www.chess.com"]

[Event "Titled Tuesday Blitz May 16 Late 2023"]
[White "Deac, Bogdan-Daniel"]
[Black "Durarbayli, Vasif"]
[WhiteFideId "1226380"]
[BlackFideId "13402935"]
[WhiteElo "2649"]
[BlackElo "2551"]
[Result "1/2-1/2"]
[Round "07"]
[TimeControl "180+2"]
[Date "2023.05.16"]
[WhiteClock "0:00:07"]
[BlackClock "0:00:25"]

1. e4 {[%clk 0:03:00]}  e5 {[%clk 0:02:56]} 2. Nf3 {[%clk 0:03:01]}  Nc6 {[%clk 0:02:57]} 3. Bb5 {[%clk 0:03:01]}  a6 {[%clk 0:02:56]} 4. Bxc6 {[%clk 0:03:02]}  dxc6 {[%clk 0:02:55]} 5. Nc3 {[%clk 0:03:03]}  Bg4 {[%clk 0:02:26]} 6. h3 {[%clk 0:03:02]}  Bxf3 {[%clk 0:02:26]} 7. Qxf3 {[%clk 0:03:03]}  Qf6 {[%clk 0:02:25]} 8. Qxf6 {[%clk 0:02:53]}  Nxf6 {[%clk 0:02:26]} 9. d3 {[%clk 0:02:54]}  Bd6 {[%clk 0:02:24]} 10. Nd1 {[%clk 0:02:51]}  Nd7 {[%clk 0:02:18]} 11. Ne3 {[%clk 0:02:50]}  Nc5 {[%clk 0:02:17]} 12. a4 {[%clk 0:02:48]}  a5 {[%clk 0:02:17]} 13. Nc4 {[%clk 0:02:41]}  Ne6 {[%clk 0:02:14]} 14. Bd2 {[%clk 0:02:38]}  b6 {[%clk 0:02:13]} 15. g3 {[%clk 0:02:38]}  f6 {[%clk 0:02:08]} 16. h4 {[%clk 0:02:27]}  Nd4 {[%clk 0:02:05]} 17. Kd1 {[%clk 0:02:26]}  c5 {[%clk 0:01:37]} 18. f4 {[%clk 0:02:06]}  exf4 {[%clk 0:01:37]} 19. gxf4 {[%clk 0:02:06]}  O-O-O {[%clk 0:01:36]} 20. Be3 {[%clk 0:01:57]}  g6 {[%clk 0:01:26]} 21. Kd2 {[%clk 0:01:49]}  Ne6 {[%clk 0:01:19]} 22. Raf1 {[%clk 0:01:44]}  f5 {[%clk 0:01:19]} 23. h5 {[%clk 0:01:23]}  fxe4 {[%clk 0:01:05]} 24. hxg6 {[%clk 0:01:18]}  hxg6 {[%clk 0:01:04]} 25. Rxh8 {[%clk 0:01:08]}  Rxh8 {[%clk 0:01:05]} 26. dxe4 {[%clk 0:01:06]}  Rh2+ {[%clk 0:01:05]} 27. Kd3 {[%clk 0:01:01]}  Kd7 {[%clk 0:00:55]} 28. f5 {[%clk 0:00:53]}  gxf5 {[%clk 0:00:55]} 29. exf5 {[%clk 0:00:54]}  Nd8 {[%clk 0:00:52]} 30. Rg1 {[%clk 0:00:48]}  Rh7 {[%clk 0:00:45]} 31. Rg6 {[%clk 0:00:16]}  Nf7 {[%clk 0:00:44]} 32. c3 {[%clk 0:00:14]}  Rh5 {[%clk 0:00:32]} 33. Rf6 {[%clk 0:00:07]}  Ke7 {[%clk 0:00:30]} 34. Re6+ {[%clk 0:00:07]}  Kd7 {[%clk 0:00:31]} 35. Rf6 {[%clk 0:00:07]}  Ke7 {[%clk 0:00:30]} 36. Re6+ {[%clk 0:00:07]}  Kd7 {[%clk 0:00:25]} 37. Rf6 {[%clk 0:00:07]} 1/2-1/2


[Site "https://www.chess.com"]

[Event "Titled Tuesday Blitz May 16 Late 2023"]
[White "Andreikin, Dmitry"]
[Black "Sieciechowicz, Marcin"]
[WhiteFideId "4158814"]
[BlackFideId "1130170"]
[WhiteElo "2736"]
[BlackElo "2302"]
[Result "1-0"]
[Round "07"]
[TimeControl "180+2"]
[Date "2023.05.16"]
[WhiteClock "0:01:15"]
[BlackClock "0:00:58"]

1. Nf3 {[%clk 0:03:00]}  Nf6 {[%clk 0:02:59]} 2. c4 {[%clk 0:03:00]}  c6 {[%clk 0:02:59]} 3. Nc3 {[%clk 0:02:59]}  d5 {[%clk 0:03:00]} 4. e3 {[%clk 0:02:59]}  e6 {[%clk 0:02:59]} 5. b3 {[%clk 0:02:57]}  Nbd7 {[%clk 0:02:59]} 6. Bb2 {[%clk 0:02:57]}  Bd6 {[%clk 0:03:00]} 7. g3 {[%clk 0:02:56]}  Qe7 {[%clk 0:02:59]} 8. Bg2 {[%clk 0:02:56]}  O-O {[%clk 0:03:00]} 9. O-O {[%clk 0:02:55]}  b6 {[%clk 0:03:00]} 10. cxd5 {[%clk 0:02:53]}  exd5 {[%clk 0:02:59]} 11. Nd4 {[%clk 0:02:51]}  Ne5 {[%clk 0:02:42]} 12. Qc2 {[%clk 0:02:50]}  Bb7 {[%clk 0:02:34]} 13. Nf5 {[%clk 0:02:45]}  Qd7 {[%clk 0:02:29]} 14. Bh3 {[%clk 0:02:39]}  Kh8 {[%clk 0:02:18]} 15. f4 {[%clk 0:02:39]}  Neg4 {[%clk 0:02:10]} 16. Ne2 {[%clk 0:02:28]}  Ba6 {[%clk 0:01:47]} 17. Bxg4 {[%clk 0:02:19]}  Nxg4 {[%clk 0:01:36]} 18. Bxg7+ {[%clk 0:02:18]}  Kg8 {[%clk 0:01:36]} 19. Bxf8 {[%clk 0:02:17]}  Rxf8 {[%clk 0:01:33]} 20. Rfe1 {[%clk 0:02:09]}  Nf6 {[%clk 0:01:30]} 21. Ned4 {[%clk 0:02:02]}  Bb7 {[%clk 0:01:28]} 22. Nxd6 {[%clk 0:02:00]}  Qxd6 {[%clk 0:01:29]} 23. Qf5 {[%clk 0:02:00]}  Ne4 {[%clk 0:01:27]} 24. d3 {[%clk 0:01:58]}  Nc5 {[%clk 0:01:26]} 25. b4 {[%clk 0:01:54]}  Na4 {[%clk 0:01:18]} 26. Qg5+ {[%clk 0:01:51]}  Kh8 {[%clk 0:01:11]} 27. Nf5 {[%clk 0:01:46]}  Qg6 {[%clk 0:01:10]} 28. Qe7 {[%clk 0:01:46]}  Rg8 {[%clk 0:01:10]} 29. Nh4 {[%clk 0:01:40]}  Qh5 {[%clk 0:01:03]} 30. Qf6+ {[%clk 0:01:22]}  Rg7 {[%clk 0:01:03]} 31. Nf5 {[%clk 0:01:22]}  Qg6 {[%clk 0:01:03]} 32. Qxg7+ {[%clk 0:01:22]}  Qxg7 {[%clk 0:01:04]} 33. Nxg7 {[%clk 0:01:22]}  Kxg7 {[%clk 0:01:05]} 34. Rac1 {[%clk 0:01:20]}  Kf6 {[%clk 0:01:04]} 35. e4 {[%clk 0:01:18]}  Nb2 {[%clk 0:01:03]} 36. exd5 {[%clk 0:01:17]}  cxd5 {[%clk 0:01:03]} 37. Rc7 {[%clk 0:01:16]}  Ba6 {[%clk 0:01:01]} 38. b5 {[%clk 0:01:15]}  Bxb5 {[%clk 0:00:58]} 39. Rb1 {[%clk 0:01:15]} 1-0


[Site "https://www.chess.com"]

[Event "Titled Tuesday Blitz May 16 Late 2023"]
[White "Sarana, Alexey"]
[Black "Quispe Arteaga, Gabriel"]
[WhiteFideId "24133795"]
[BlackFideId "32059809"]
[WhiteElo "2714"]
[BlackElo "2274"]
[Result "1-0"]
[Round "07"]
[TimeControl "180+2"]
[Date "2023.05.16"]
[WhiteClock "0:01:54"]
[BlackClock "0:00:00"]

1. c4 {[%clk 0:03:00]}  Nf6 {[%clk 0:02:48]} 2. d4 {[%clk 0:03:01]}  e6 {[%clk 0:02:47]} 3. Nc3 {[%clk 0:03:01]}  Bb4 {[%clk 0:02:47]} 4. e3 {[%clk 0:03:01]}  O-O {[%clk 0:02:44]} 5. Bd3 {[%clk 0:03:01]}  d5 {[%clk 0:02:44]} 6. a3 {[%clk 0:03:02]}  Bxc3+ {[%clk 0:02:30]} 7. bxc3 {[%clk 0:03:03]}  b6 {[%clk 0:02:31]} 8. cxd5 {[%clk 0:03:02]}  exd5 {[%clk 0:02:32]} 9. Ne2 {[%clk 0:03:02]}  Ba6 {[%clk 0:02:31]} 10. f3 {[%clk 0:03:02]}  Qc8 {[%clk 0:02:30]} 11. e4 {[%clk 0:02:58]}  Bxd3 {[%clk 0:01:25]} 12. Qxd3 {[%clk 0:02:57]}  Qa6 {[%clk 0:01:26]} 13. Qe3 {[%clk 0:02:42]}  dxe4 {[%clk 0:00:49]} 14. fxe4 {[%clk 0:02:43]}  Nc6 {[%clk 0:00:49]} 15. O-O {[%clk 0:02:34]}  Rae8 {[%clk 0:00:49]} 16. Rxf6 {[%clk 0:01:56]}  gxf6 {[%clk 0:00:42]} 17. Ng3 {[%clk 0:01:57]}  Kh8 {[%clk 0:00:37]} 18. Qh6 {[%clk 0:01:57]}  Qd3 {[%clk 0:00:03]} 19. Qxf6+ {[%clk 0:01:54]}  Kg8 {[%clk 0:00:00]} 20. Bh6 {[%clk 0:01:54]} 1-0


[Site "https://www.chess.com"]

[Event "Titled Tuesday Blitz May 16 Late 2023"]
[White "Smirnov, Pavel"]
[Black "Ibarra Jerez, Jose Carlos"]
[WhiteFideId "4123425"]
[BlackFideId "2226332"]
[WhiteElo "2520"]
[BlackElo "2638"]
[Result "0-1"]
[Round "07"]
[TimeControl "180+2"]
[Date "2023.05.16"]
[WhiteClock "0:00:01"]
[BlackClock "0:00:03"]

1. d4 {[%clk 0:03:00]}  Nf6 {[%clk 0:02:59]} 2. c4 {[%clk 0:03:00]}  d6 {[%clk 0:02:59]} 3. Nf3 {[%clk 0:02:59]}  g6 {[%clk 0:02:59]} 4. g3 {[%clk 0:02:58]}  Bf5 {[%clk 0:02:58]} 5. Bg2 {[%clk 0:02:55]}  Bg7 {[%clk 0:02:58]} 6. O-O {[%clk 0:02:54]}  O-O {[%clk 0:02:58]} 7. Nfd2 {[%clk 0:02:51]}  Nc6 {[%clk 0:02:54]} 8. e4 {[%clk 0:02:47]}  Bg4 {[%clk 0:02:54]} 9. f3 {[%clk 0:02:45]}  Bd7 {[%clk 0:02:53]} 10. Nb3 {[%clk 0:02:42]}  e5 {[%clk 0:02:51]} 11. d5 {[%clk 0:02:42]}  Nb8 {[%clk 0:02:47]} 12. c5 {[%clk 0:02:40]}  a5 {[%clk 0:02:27]} 13. Be3 {[%clk 0:02:37]}  a4 {[%clk 0:02:26]} 14. N3d2 {[%clk 0:02:33]}  dxc5 {[%clk 0:02:14]} 15. Bxc5 {[%clk 0:02:32]}  Re8 {[%clk 0:02:15]} 16. Nc3 {[%clk 0:02:31]}  Na6 {[%clk 0:02:15]} 17. Be3 {[%clk 0:02:30]}  a3 {[%clk 0:02:13]} 18. b3 {[%clk 0:02:27]}  Nb4 {[%clk 0:02:10]} 19. Kh1 {[%clk 0:02:20]}  c6 {[%clk 0:02:09]} 20. Nc4 {[%clk 0:02:17]}  cxd5 {[%clk 0:02:07]} 21. exd5 {[%clk 0:02:18]}  Bf5 {[%clk 0:02:04]} 22. d6 {[%clk 0:01:51]}  Ra6 {[%clk 0:01:52]} 23. Nb5 {[%clk 0:01:45]}  Nc2 {[%clk 0:01:38]} 24. Rc1 {[%clk 0:01:36]}  Nxe3 {[%clk 0:01:36]} 25. Nxe3 {[%clk 0:01:37]}  Be6 {[%clk 0:01:24]} 26. Qe2 {[%clk 0:01:36]}  Bh6 {[%clk 0:00:57]} 27. Nc7 {[%clk 0:01:30]}  Rxd6 {[%clk 0:00:52]} 28. Nxe8 {[%clk 0:01:30]}  Qxe8 {[%clk 0:00:53]} 29. Rfd1 {[%clk 0:01:19]}  Rd4 {[%clk 0:00:41]} 30. Nc2 {[%clk 0:01:10]}  Rd5 {[%clk 0:00:26]} 31. Rxd5 {[%clk 0:01:06]}  Nxd5 {[%clk 0:00:26]} 32. Re1 {[%clk 0:01:04]}  Nc3 {[%clk 0:00:16]} 33. Qxe5 {[%clk 0:00:57]}  Nxa2 {[%clk 0:00:17]} 34. Nxa3 {[%clk 0:00:55]}  Bg7 {[%clk 0:00:13]} 35. Qc7 {[%clk 0:00:46]}  Qf8 {[%clk 0:00:09]} 36. Nc4 {[%clk 0:00:46]}  Qb4 {[%clk 0:00:09]} 37. Rxe6 {[%clk 0:00:19]}  fxe6 {[%clk 0:00:08]} 38. Qc8+ {[%clk 0:00:19]}  Kf7 {[%clk 0:00:06]} 39. Qd7+ {[%clk 0:00:19]}  Kf8 {[%clk 0:00:06]} 40. h4 {[%clk 0:00:18]}  Qe7 {[%clk 0:00:04]} 41. Qc8+ {[%clk 0:00:17]}  Kf7 {[%clk 0:00:04]} 42. Bh3 {[%clk 0:00:17]}  Bf6 {[%clk 0:00:04]} 43. Nd2 {[%clk 0:00:15]}  Nc3 {[%clk 0:00:04]} 44. Nc4 {[%clk 0:00:14]}  Kg7 {[%clk 0:00:04]} 45. Kg2 {[%clk 0:00:12]}  Ne2 {[%clk 0:00:04]} 46. h5 {[%clk 0:00:10]}  gxh5 {[%clk 0:00:03]} 47. Bxe6 {[%clk 0:00:10]}  Nd4 {[%clk 0:00:04]} 48. Qg8+ {[%clk 0:00:10]}  Kh6 {[%clk 0:00:04]} 49. Ne3 {[%clk 0:00:07]}  Qxe6 {[%clk 0:00:03]} 50. Qf8+ {[%clk 0:00:05]}  Bg7 {[%clk 0:00:03]} 51. Qf4+ {[%clk 0:00:04]}  Kg6 {[%clk 0:00:04]} 52. g4 {[%clk 0:00:04]}  Bh6 {[%clk 0:00:03]} 53. gxh5+ {[%clk 0:00:04]}  Kg7 {[%clk 0:00:04]} 54. Qg3+ {[%clk 0:00:04]}  Kh8 {[%clk 0:00:04]} 55. Qb8+ {[%clk 0:00:03]}  Qg8+ {[%clk 0:00:04]} 56. Qxg8+ {[%clk 0:00:03]}  Kxg8 {[%clk 0:00:05]} 57. Nc4 {[%clk 0:00:03]}  Nxb3 {[%clk 0:00:05]} 58. Nd6 {[%clk 0:00:03]}  b6 {[%clk 0:00:05]} 59. Nc4 {[%clk 0:00:02]}  b5 {[%clk 0:00:06]} 60. Na3 {[%clk 0:00:02]}  Nd4 {[%clk 0:00:04]} 61. Nc2 {[%clk 0:00:01]}  Nxc2 {[%clk 0:00:03]} 0-1


[Site "https://www.chess.com"]

[Event "Titled Tuesday Blitz May 16 Late 2023"]
[White "Antipov, Mikhail Al."]
[Black "Djokic, Mihailo"]
[WhiteFideId "4107012"]
[BlackFideId "976440"]
[WhiteElo "2513"]
[BlackElo "2294"]
[Result "1-0"]
[Round "07"]
[TimeControl "180+2"]
[Date "2023.05.16"]
[WhiteClock "0:00:58"]
[BlackClock "0:01:08"]

1. e4 {[%clk 0:03:00]}  c5 {[%clk 0:02:55]} 2. Nf3 {[%clk 0:03:00]}  d6 {[%clk 0:02:55]} 3. d4 {[%clk 0:03:01]}  cxd4 {[%clk 0:02:56]} 4. Nxd4 {[%clk 0:03:02]}  Nf6 {[%clk 0:02:56]} 5. Nc3 {[%clk 0:03:02]}  g6 {[%clk 0:02:56]} 6. Be3 {[%clk 0:03:00]}  Bg7 {[%clk 0:02:45]} 7. f3 {[%clk 0:03:00]}  O-O {[%clk 0:02:45]} 8. Qd2 {[%clk 0:03:00]}  Nc6 {[%clk 0:02:46]} 9. Bc4 {[%clk 0:03:00]}  Bd7 {[%clk 0:02:47]} 10. O-O-O {[%clk 0:03:01]}  Rc8 {[%clk 0:02:47]} 11. Be2 {[%clk 0:03:01]}  Ne5 {[%clk 0:02:48]} 12. Kb1 {[%clk 0:02:57]}  Nc4 {[%clk 0:02:44]} 13. Bxc4 {[%clk 0:02:55]}  Rxc4 {[%clk 0:02:45]} 14. g4 {[%clk 0:02:53]}  b5 {[%clk 0:02:45]} 15. h4 {[%clk 0:02:36]}  h5 {[%clk 0:02:43]} 16. gxh5 {[%clk 0:02:23]}  b4 {[%clk 0:02:41]} 17. Nd5 {[%clk 0:02:21]}  Nxh5 {[%clk 0:02:41]} 18. b3 {[%clk 0:02:17]}  Rc8 {[%clk 0:02:39]} 19. Rdg1 {[%clk 0:02:06]}  a5 {[%clk 0:02:33]} 20. Bh6 {[%clk 0:01:48]}  e6 {[%clk 0:02:23]} 21. Bxg7 {[%clk 0:01:36]}  Kxg7 {[%clk 0:02:20]} 22. Nf4 {[%clk 0:01:13]}  Nxf4 {[%clk 0:02:19]} 23. Qxf4 {[%clk 0:01:14]}  e5 {[%clk 0:02:13]} 24. Nf5+ {[%clk 0:01:14]}  Bxf5 {[%clk 0:02:13]} 25. Qxf5 {[%clk 0:01:15]}  Qf6 {[%clk 0:02:08]} 26. h5 {[%clk 0:01:09]}  Qxf5 {[%clk 0:02:00]} 27. exf5 {[%clk 0:01:09]}  g5 {[%clk 0:01:46]} 28. Rxg5+ {[%clk 0:01:00]}  Kf6 {[%clk 0:01:46]} 29. Rg4 {[%clk 0:01:00]}  Rc3 {[%clk 0:01:39]} 30. h6 {[%clk 0:00:59]}  Rxf3 {[%clk 0:01:36]} 31. h7 {[%clk 0:01:00]}  Kxf5 {[%clk 0:01:08]} 32. Rg8 {[%clk 0:00:58]} 1-0


[Site "https://www.chess.com"]